fUSD/lending_fUSD_20250530
["ID","MTS","AMOUNT","RATE_DAILY","PERIOD"]
[363091678,1748573459046,-150.0,0.00022301,2]
[363091680,1748573459055,-470.475019,0.00022301,2]
[363091681,1748573459064,-5098.93869734,0.00022301,2]
[363091683,1748573459077,-2220.64100359,0.00022302,2]
[363091685,1748573459086,-150.0,0.00022304,2]
[363091686,1748573459095,-150.0,0.00022306,2]
[363091688,1748573459104,-150.0,0.00022313,2]
[363091689,1748573459114,-150.0,0.00022316,2]
[363091691,1748573459123,-150.0,0.00022316,2]
[363091693,1748573459133,-150.0,0.00022316,2]
[363091694,1748573459142,-150.0,0.00022316,2]
[363091696,1748573459152,-150.0,0.00022319,2]
[363091698,1748573459161,-150.0,0.00022323,2]
[363091699,1748573459170,-150.0,0.00022324,2]
[363091701,1748573459180,-150.0,0.00022324,2]
[363091703,1748573459189,-150.0,0.00022325,2]
[363091704,1748573459199,-150.0,0.00022331,2]
[363091706,1748573459208,-150.0,0.00022334,2]
[363091708,1748573459217,-150.0,0.00022335,2]
[363091709,1748573459227,-150.0,0.00022337,2]
[363091711,1748573459236,-150.0,0.00022339,2]
[363091713,1748573459245,-150.0,0.0002234,2]
[363091714,1748573459255,-150.0,0.00022345,2]
[363091716,1748573459264,-150.0,0.00022348,2]
[363091718,1748573459273,-150.0,0.00022351,2]
[363091719,1748573459282,-1314.0,0.00022355,2]
[363091721,1748573459292,-948.882,0.00022355,2]
[363091722,1748573459301,-634.0,0.00022355,2]
[363091724,1748573459311,-801.0,0.00022355,2]
[363091726,1748573459320,-1268.0,0.00022355,2]
[363091727,1748573459330,-1466.0,0.00022355,2]
[363091729,1748573459340,-556.0,0.00022355,2]
[363091731,1748573459349,-588.0,0.00022355,2]
[363091732,1748573459358,-924.0,0.00022355,2]
[363091734,1748573459367,-882.0,0.00022355,2]
[363091736,1748573459377,-861.102,0.00022355,2]
[363091738,1748573459387,-4068.0,0.00022355,2]
[363091740,1748573459396,-155.0,0.00022355,2]
[363091742,1748573459406,-3169.26549347,0.00022355,2]
[363091745,1748573459421,-685.33725495,0.00022355,2]
[363091831,1748573460441,-423.62,0.00021917,2]
[363091833,1748573460451,-555.54,0.00021917,2]
[363091835,1748573460461,-500.0,0.00021917,2]
[363091837,1748573460471,-420.0,0.00021917,2]
[363091839,1748573460480,-420.0,0.00021917,2]
[363091841,1748573460489,-420.0,0.00021917,2]
[363091843,1748573460499,-151.0,0.00022181,7]
[363091845,1748573460509,-370.0,0.00022191,2]
[363091847,1748573460518,-420.0,0.00022191,2]
[363091849,1748573460528,-420.0,0.00022191,2]
[363091851,1748573460538,-420.0,0.00022191,2]
[363091853,1748573460548,-908.1604528,0.00022355,2]
[363091858,1748573460589,-2166.23679878,0.00022355,2]
[363091860,1748573460599,-508.708608,0.00022355,7]
[363091862,1748573460609,-508.708608,0.00022355,7]
[363091864,1748573460618,-150.0,0.00022356,2]
[363091866,1748573460628,-150.0,0.00022357,2]
[363091868,1748573460638,-150.0,0.00022359,2]
[363091871,1748573460647,-150.0,0.00022359,2]
[363091873,1748573460657,-150.0,0.0002236,2]
[363091875,1748573460667,-150.0,0.00022361,2]
[363091877,1748573460676,-150.0,0.00022362,2]
[363091879,1748573460685,-7059.1949259,0.00022362,2]
[363091881,1748573460695,-5098.93869734,0.00022362,2]
[363091883,1748573460704,-1124.2722073,0.00022362,2]
[363091885,1748573460713,-271.79483816,0.00022362,2]
[363091887,1748573460723,-150.0,0.00022363,2]
[363091889,1748573460735,-2220.64100359,0.00022363,2]
[363091891,1748573460744,-150.0,0.00022364,2]
[363091893,1748573460754,-150.0,0.00022364,2]
[363091895,1748573460763,-291.0,0.0002237,2]
[363091897,1748573460773,-150.0,0.00022375,2]
[363091899,1748573460782,-150.0,0.00022377,2]
[363091901,1748573460792,-150.0,0.00022378,2]
[363091903,1748573460804,-150.0,0.00022378,2]
[363091905,1748573460814,-150.0,0.0002238,2]
[363091907,1748573460823,-150.0,0.00022384,2]
[363091909,1748573460833,-180.0,0.00022385,2]
[363091911,1748573460842,-150.0,0.00022387,2]
[363091913,1748573460852,-150.0,0.00022392,2]
[363091915,1748573460862,-150.0,0.00022398,2]
[363091917,1748573460871,-150.0,0.00022399,2]
[363091919,1748573460881,-150.0,0.000224,2]
[363091921,1748573460890,-589.36252609,0.000224,2]
[363091923,1748573460899,-20015.25,0.000224,2]
[363091925,1748573460908,-159.0,0.000224,7]
[363091927,1748573460918,-200.0,0.000224,2]
[363091929,1748573460927,-151.0,0.000224,7]
[363091931,1748573460936,-151.0,0.000224,7]
[363091933,1748573460946,-150.0,0.00022401,2]
[363091936,1748573460959,-150.0,0.00022401,2]
[363091938,1748573460968,-227.574779,0.00022402,2]
[363091940,1748573460978,-164.09706187,0.00022404,2]
[363091942,1748573460987,-150.0,0.00022413,2]
[363091944,1748573460996,-150.0,0.00022418,2]
[363091946,1748573461006,-150.0,0.00022418,2]
[363091948,1748573461015,-150.0,0.00022422,2]
[363091950,1748573461023,-150.0,0.00022424,2]
[363091952,1748573461033,-150.0,0.00022428,2]
[363091954,1748573461043,-720.91666,0.0002243,2]
[363091956,1748573461055,-150.0,0.00022436,2]
[363091958,1748573461066,-150.0,0.00022439,2]
[363091960,1748573461077,-150.0,0.00022439,2]
[363091962,1748573461086,-64801.9171595,0.00022447,2]
[363091964,1748573461095,-9622.406954,0.00022447,2]
[363091966,1748573461105,-18614.5535887,0.00022447,2]
[363091968,1748573461115,-685.8023047,0.00022449,3]
[363091970,1748573461124,-32132.61808255,0.00022449,3]
[363091972,1748573461136,-2277.68493902,0.00022449,3]
[363091976,1748573461159,-420.0,0.00021917,2]
[363091978,1748573461169,-484.83117088,0.00022449,3]
[363091982,1748573461197,-484200.49228187,0.00022449,3]
[363091984,1748573461208,-2722.32958891,0.00022449,3]
[363091987,1748573461223,-529.6,0.00022191,2]
[363091989,1748573461234,-1377.8619351,0.00022449,3]
[363091991,1748573461249,-1909.18728,0.00022449,3]
[363092310,1748573517430,-152.00556786,0.00019476,2]
[363092311,1748573520371,-167.91906618,0.00019476,2]
[363092312,1748573547421,-259.73144017,0.00019476,2]
[363092314,1748573563739,164.79,0.00013699,2]
[363092315,1748573639228,-152.466968,0.00022181,7]
[363092316,1748573639250,-151.0,0.00022181,7]
[363092317,1748573639270,-151.0,0.00022181,7]
[363092318,1748573639291,-151.0,0.00022185,7]
[363092319,1748573639312,-151.0,0.00022185,7]
[363092320,1748573639333,-4.067076,0.00022185,7]
[363092321,1748573639374,-146.932924,0.00022185,7]
[363092322,1748573639393,-156.534044,0.00022185,7]
[363092323,1748573639413,-151.0,0.00022185,7]
[363092324,1748573639435,-151.0,0.00022191,7]
[363092325,1748573639456,-151.0,0.00022191,7]
[363092326,1748573639478,-151.0,0.00022191,7]
[363092327,1748573639498,-151.0,0.00022191,7]
[363092328,1748573639519,-151.0,0.00022191,7]
[363092329,1748573639540,-151.0,0.00022191,7]
[363092330,1748573639560,-151.0,0.00022191,7]
[363092331,1748573639582,-151.0,0.00022191,7]
[363092332,1748573639603,-151.0,0.00022191,7]
[363092333,1748573639628,-151.0,0.00022191,7]
[363092334,1748573639649,-151.0,0.00022191,7]
[363092335,1748573639672,-151.0,0.00022191,7]
[363092336,1748573639699,-14706.53202,0.000222,4]
[363092337,1748573843430,857.7575048,0.0001107,2]
[363092338,1748573843683,857.7575048,0.00011468,2]
[363092339,1748573843984,857.7575048,0.00011589,2]
[363092340,1748573844335,298.54991892,0.00012042,2]
[363092341,1748573844358,559.20758588,0.00012042,2]
[363092342,1748573844633,857.7575048,0.0001222,2]
[363092343,1748573844957,857.7575048,0.00012437,2]
[363092344,1748573845283,857.7575048,0.00012668,2]
[363092345,1748573845630,857.7575048,0.00012945,2]
[363092346,1748573846180,857.7575048,0.00013421,2]
[363092347,1748573846344,857.7575048,0.0001353,2]
[363092348,1748573846741,857.7575048,0.00013845,2]
[363092349,1748573847496,252.49891628,0.00014001,2]
[363092350,1748573847520,605.25858852,0.00014001,2]
[363092351,1748573847814,857.7575048,0.00014517,2]
[363092352,1748573848114,857.7575048,0.00014667,2]
[363092353,1748573848408,857.7575048,0.00014992,2]
[363092354,1748573848787,857.7575048,0.00015208,2]
[363092355,1748573849091,200.0,0.00015463,2]
[363092356,1748573849114,657.7575048,0.00015463,2]
[363092357,1748573849752,857.7575048,0.0001581,2]
[363092358,1748573849829,857.7575048,0.00015921,2]
[363092359,1748573850034,857.7575048,0.00016288,2]
[363092360,1748573850343,857.7575048,0.00016582,2]
[363092361,1748573850641,857.7575048,0.00016722,2]
[363092362,1748573851449,857.7575048,0.00016993,2]
[363092363,1748573851772,857.7575048,0.00017397,2]
[363092364,1748573852133,857.7575048,0.00017778,2]
[363092365,1748573852440,857.7575048,0.00017843,2]
[363092366,1748573853259,857.7575048,0.00018272,2]
[363092367,1748573853600,857.7575048,0.00018417,2]
[363092368,1748573854402,189.9731221,0.00018652,2]
[363092369,1748573854429,667.7843827,0.00018652,2]
[363092370,1748573855506,-495.0710925,0.00019139,2]
[363092371,1748573858280,-183.40265608,0.00019139,2]
[363092372,1748573860433,-179.28375622,0.00019139,2]
[363092373,1748573905725,-340.15904522,0.00019375,2]
[363092374,1748573935045,-199.75520218,0.00019375,2]
[363092375,1748573939514,-258.75873228,0.00019375,2]
[363092376,1748573943030,-59.08452512,0.00019375,2]
[363092377,1748573943054,-93.83650973,0.00019425,2]
[363092378,1748573968333,-106.16349027,0.00019425,2]
[363092379,1748573968356,-45.02081112,0.00019476,2]
[363092380,1748573971787,-152.68411756,0.00019476,2]
[363092381,1748573973722,-157.80336684,0.00019476,2]
[363092382,1748574030633,153.735439,0.00022191,7]
[363092383,1748574040849,-168.07165756,0.00019223,2]
[363092384,1748574052865,151.0,0.00022191,7]
[363092385,1748574054177,305.225165,0.00022191,7]
[363092386,1748574057489,305.225165,0.00022191,7]
[363092387,1748574078440,151.0,0.00022191,7]
[363092388,1748574096284,151.0,0.00022191,7]
[363092389,1748574138460,-289.74498282,0.00019281,2]
[363092390,1748574140505,-18.46148018,0.00019281,2]
[363092391,1748574213704,151.0,0.00022191,7]
[363092392,1748574222287,160.666003,0.00022191,7]
[363092395,1748574255074,151.0,0.00022191,7]
[363092396,1748574273204,132.148228,0.00022191,7]
[363092409,1748574486372,857.7575049,0.00018051,2]
[363092410,1748574486677,857.7575049,0.00018104,2]
[363092411,1748574486999,857.7575049,0.00018558,2]
[363092412,1748574487372,857.7575049,0.00018755,2]
[363092413,1748574487689,857.7575049,0.00018946,2]
[363092414,1748574489070,-174.72815105,0.00019265,2]
[363092415,1748574492383,-157.22348167,0.00019265,2]
[363092416,1748574494366,454.466968,0.00021955,7]
[363092417,1748574494538,-152.05,0.00019265,2]
[363092418,1748574496065,-284.62973833,0.00019265,2]
[363092419,1748574500389,-89.12613385,0.00019265,2]
[363092434,1748574632196,-214.7179902,0.00019376,2]
[363092435,1748574632206,-105.32563027,0.00019476,2]
[363092436,1748574632216,-200.0,0.00019476,2]
[363092437,1748574632226,-200.0,0.00019476,2]
[363092438,1748574632235,-147.62174549,0.00019476,2]
[363092950,1748574638159,-102.37825451,0.00019476,2]
[363092951,1748574638169,-153.37764154,0.00019476,2]
[363092952,1748574638179,-200.0,0.00019628,2]
[363092953,1748574638189,-368.36,0.0001976,2]
[363092954,1748574638200,-1200.0,0.00019762,2]
[363092955,1748574638210,-852.25,0.00019763,2]
[363092956,1748574638220,-23900.0,0.00019763,2]
[363092957,1748574638230,-315.46,0.00019787,2]
[363092958,1748574638240,-200.0,0.00019808,2]
[363092959,1748574638250,-774.74,0.00019836,2]
[363092960,1748574638259,-623.56,0.00019891,2]
[363092961,1748574638269,-2923.83,0.00019899,2]
[363092962,1748574638279,-1000.0,0.00019919,2]
[363092963,1748574638289,-4151.36,0.00019942,2]
[363092964,1748574638299,-250.0,0.00019954,2]
[363092965,1748574638308,-597.0,0.00019969,2]
[363092966,1748574638318,-57125.74014433,0.0001997,2]
[363092967,1748574638329,-42626.57,0.0001998,2]
[363092968,1748574638338,-500.0,0.00020011,2]
[363092969,1748574638348,-900.0,0.00020011,2]
[363092970,1748574638358,-382.35,0.00020027,2]
[363092971,1748574638368,-164.79,0.00020187,2]
[363092972,1748574638378,-166.8,0.00020356,2]
[363092974,1748574638389,-365.54,0.0002041,2]
[363092976,1748574638399,-365.54,0.00020416,2]
[363092978,1748574638409,-365.54,0.00020421,2]
[363092980,1748574638419,-365.54,0.00020427,2]
[363092982,1748574638429,-365.54,0.00020432,2]
[363092984,1748574638439,-365.54,0.00020437,2]
[363092986,1748574638449,-365.54,0.00020443,2]
[363092988,1748574638460,-365.54,0.00020448,2]
[363092990,1748574638471,-365.54,0.00020453,2]
[363092992,1748574638481,-365.54,0.00020459,2]
[363092994,1748574638491,-365.54,0.00020464,2]
[363092996,1748574638501,-365.54,0.0002047,2]
[363092998,1748574638512,-365.54,0.00020475,2]
[363093000,1748574638522,-365.54,0.0002048,2]
[363093002,1748574638532,-365.54,0.00020486,2]
[363093004,1748574638543,-365.54,0.00020491,2]
[363093006,1748574638553,-365.54,0.00020496,2]
[363093008,1748574638562,-365.54,0.00020502,2]
[363093010,1748574638572,-365.54,0.00020507,2]
[363093012,1748574638582,-365.54,0.00020512,2]
[363093014,1748574638593,-857.757504,0.00020764,2]
[363093017,1748574638604,-233.33,0.00020769,2]
[363093019,1748574638614,-1009.15,0.00020953,2]
[363093021,1748574638624,-857.757504,0.00021005,2]
[363093023,1748574638634,-160.09,0.00021005,2]
[363093025,1748574638644,-1115.157653,0.00021077,2]
[363093027,1748574638654,-151.0,0.00021077,2]
[363093029,1748574638665,-207.4,0.00021077,2]
[363093031,1748574638675,-900.0,0.00021107,2]
[363093033,1748574638684,-166.43,0.00021194,2]
[363093035,1748574638694,-857.757504,0.0002125,2]
[363093037,1748574638703,-170.34,0.0002137,2]
[363093039,1748574638713,-2751.0,0.00021406,2]
[363093041,1748574638724,-200.0,0.00021423,2]
[363093043,1748574638735,-250.0,0.00021423,2]
[363093045,1748574638746,-200.0,0.00021423,2]
[363093047,1748574638756,-250.0,0.00021423,2]
[363093049,1748574638766,-714.86830573,0.00021464,2]
[363093051,1748574638776,-857.757504,0.00021517,2]
[363093053,1748574638787,-1680.0,0.00021628,2]
[363093055,1748574638798,-496.16352224,0.00021716,2]
[363093057,1748574638808,-1040.49,0.0002174,2]
[363093059,1748574638818,-1516.6458,0.00021806,2]
[363093061,1748574638829,-751.3787,0.00021817,2]
[363093064,1748574638841,-551.0804,0.00021817,2]
[363093065,1748574638850,-594.0997,0.00021817,2]
[363093068,1748574638862,-643.61121484,0.00021817,2]
[363093070,1748574638871,-843.5351139,0.00021817,2]
[363093072,1748574638882,-291.83503959,0.00021817,2]
[363093074,1748574638892,-155.00860562,0.00021817,2]
[363093076,1748574638902,-166.83600452,0.00021817,2]
[363093078,1748574638912,-857.757504,0.00021827,2]
[363093080,1748574638921,-291.83503958,0.00021905,2]
[363093082,1748574638931,-1201.93,0.00021907,2]
[363093084,1748574638941,-626.48505532,0.00021916,2]
[363093086,1748574638951,-500.0,0.00021916,2]
[363093088,1748574638961,-500.0,0.00021916,2]
[363093090,1748574638970,-500.0,0.00021916,2]
[363093092,1748574638980,-350.93833103,0.00021916,2]
[363093094,1748574638989,-392.25171057,0.00021916,2]
[363093096,1748574638999,-212.69807457,0.00021916,2]
[363093100,1748574639009,-500.0,0.00021916,2]
[363093103,1748574639018,-500.0,0.00021916,2]
[363093105,1748574639028,-500.0,0.00021916,2]
[363093107,1748574639038,-500.0,0.00021916,2]
[363093109,1748574639047,-500.0,0.00021916,2]
[363093111,1748574639056,-500.0,0.00021916,2]
[363093113,1748574639065,-500.0,0.00021916,2]
[363093115,1748574639075,-500.0,0.00021916,2]
[363093117,1748574639085,-500.0,0.00021916,2]
[363093119,1748574639098,-500.0,0.00021916,2]
[363093122,1748574639108,-500.0,0.00021916,2]
[363093124,1748574639123,-521.53609396,0.00021916,2]
[363093126,1748574639133,-500.0,0.00021916,2]
[363093128,1748574639145,-500.0,0.00021916,2]
[363093130,1748574639157,-500.0,0.00021916,2]
[363093132,1748574639167,-500.0,0.00021916,2]
[363093134,1748574639177,-500.0,0.00021916,2]
[363093136,1748574639187,-500.0,0.00021916,2]
[363093138,1748574639196,-500.0,0.00021916,2]
[363093140,1748574639206,-500.0,0.00021916,2]
[363093142,1748574639216,-500.0,0.00021916,2]
[363093144,1748574639229,-500.0,0.00021916,2]
[363093146,1748574639245,-500.0,0.00021916,2]
[363093148,1748574639255,-500.0,0.00021916,2]
[363093150,1748574639265,-500.0,0.00021916,2]
[363093152,1748574639275,-500.0,0.00021916,2]
[363093154,1748574639285,-500.0,0.00021916,2]
[363093156,1748574639295,-500.0,0.00021916,2]
[363093158,1748574639305,-500.0,0.00021916,2]
[363093160,1748574639315,-500.0,0.00021916,2]
[363093162,1748574639325,-500.0,0.00021916,2]
[363093164,1748574639336,-500.0,0.00021916,2]
[363093166,1748574639346,-500.0,0.00021916,2]
[363093168,1748574639355,-500.0,0.00021916,2]
[363093169,1748574639365,-500.0,0.00021916,2]
[363093171,1748574639378,-500.0,0.00021916,2]
[363093172,1748574639388,-500.0,0.00021916,2]
[363093174,1748574639399,-500.0,0.00021916,2]
[363093176,1748574639411,-500.0,0.00021916,2]
[363093178,1748574639421,-500.0,0.00021916,2]
[363093180,1748574639430,-500.0,0.00021916,2]
[363093182,1748574639441,-500.0,0.00021916,2]
[363093185,1748574639451,-500.0,0.00021916,2]
[363093187,1748574639461,-500.0,0.00021916,2]
[363093188,1748574639474,-500.0,0.00021916,2]
[363093190,1748574639484,-500.0,0.00021916,2]
[363093192,1748574639494,-500.0,0.00021916,2]
[363093194,1748574639504,-500.0,0.00021916,2]
[363093196,1748574639514,-500.0,0.00021916,2]
[363093198,1748574639523,-500.0,0.00021916,2]
[363093200,1748574639533,-500.0,0.00021916,2]
[363093202,1748574639544,-500.0,0.00021916,2]
[363093204,1748574639554,-500.0,0.00021916,2]
[363093206,1748574639563,-500.0,0.00021916,2]
[363093208,1748574639574,-500.0,0.00021916,2]
[363093210,1748574639585,-500.0,0.00021916,2]
[363093213,1748574639595,-500.0,0.00021916,2]
[363093214,1748574639604,-500.0,0.00021916,2]
[363093216,1748574639614,-500.0,0.00021916,2]
[363093218,1748574639624,-500.0,0.00021916,2]
[363093220,1748574639634,-500.0,0.00021916,2]
[363093223,1748574639644,-500.0,0.00021916,2]
[363093224,1748574639653,-500.0,0.00021916,2]
[363093227,1748574639663,-500.0,0.00021916,2]
[363093229,1748574639673,-500.0,0.00021916,2]
[363093231,1748574639683,-500.0,0.00021916,2]
[363093233,1748574639693,-500.0,0.00021916,2]
[363093235,1748574639703,-500.0,0.00021916,2]
[363093237,1748574639713,-597.49615268,0.00021916,2]
[363093239,1748574639723,-500.0,0.00021916,2]
[363093241,1748574639743,-500.0,0.00021916,2]
[363093244,1748574639756,-500.0,0.00021916,2]
[363093246,1748574639768,-550.00000001,0.00021916,2]
[363093248,1748574639779,-500.0,0.00021916,2]
[363093250,1748574639790,-500.0,0.00021916,2]
[363093252,1748574639801,-500.0,0.00021916,2]
[363093254,1748574639812,-500.0,0.00021916,2]
[363093257,1748574639823,-2178.23041409,0.00021916,2]
[363093259,1748574639835,-2178.23041409,0.00021916,2]
[363093261,1748574639846,-2178.23041409,0.00021916,2]
[363093263,1748574639856,-2178.23041409,0.00021916,2]
[363093265,1748574639869,-2178.23041409,0.00021916,2]
[363093267,1748574639879,-2178.23041409,0.00021916,2]
[363093269,1748574639890,-2178.23041409,0.00021916,2]
[363093271,1748574639901,-2178.23041409,0.00021916,2]
[363093274,1748574639913,-2178.23041409,0.00021916,2]
[363093276,1748574639924,-2178.23041409,0.00021916,2]
[363093278,1748574639935,-420.0,0.00021917,2]
[363093280,1748574639946,-1390.24103,0.00021917,2]
[363093282,1748574639956,-1613.723464,0.00021917,2]
[363093284,1748574639967,-420.0,0.00021917,2]
[363093286,1748574639977,-420.0,0.00021917,2]
[363093288,1748574639987,-420.0,0.00021917,2]
[363093290,1748574639997,-420.0,0.00021917,2]
[363093292,1748574640007,-420.0,0.00021917,2]
[363093294,1748574640018,-445.0,0.00021917,2]
[363093296,1748574640028,-307.01452269,0.00021917,2]
[363093298,1748574640039,-433.04,0.00021917,2]
[363093300,1748574640049,-153.8842155,0.00021917,2]
[363093303,1748574640060,-420.0,0.00021917,2]
[363093306,1748574640070,-420.0,0.00021917,2]
[363093308,1748574640080,-420.0,0.00021917,2]
[363093310,1748574640092,-420.0,0.00021917,2]
[363093312,1748574640104,-420.0,0.00021917,2]
[363093314,1748574640114,-825.54,0.00021917,2]
[363093316,1748574640124,-583.22,0.00021917,2]
[363093318,1748574640135,-420.0,0.00021917,2]
[363093320,1748574640145,-420.0,0.00021917,2]
[363093322,1748574640155,-420.0,0.00021917,2]
[363093324,1748574640164,-420.0,0.00021917,2]
[363093326,1748574640174,-420.0,0.00021917,2]
[363093328,1748574640185,-475.19,0.00021917,2]
[363093331,1748574640195,-553.76565485,0.00021917,2]
[363093333,1748574640205,-420.0,0.00021917,2]
[363093335,1748574640215,-500.0,0.00021917,2]
[363093337,1748574640225,-500.0,0.00021917,2]
[363093339,1748574640235,-500.0,0.00021917,2]
[363093341,1748574640245,-421.66,0.00021917,2]
[363093343,1748574640255,-576.3,0.00021917,2]
[363093345,1748574640265,-610.72,0.00021917,2]
[363093347,1748574640275,-420.0,0.00021917,2]
[363093349,1748574640284,-420.0,0.00021917,2]
[363093351,1748574640294,-420.0,0.00021917,2]
[363093353,1748574640304,-277.52366017,0.00021917,2]
[363093355,1748574640314,-420.0,0.00021917,2]
[363093357,1748574640325,-157.179978,0.00021917,2]
[363093359,1748574640336,-420.0,0.00021917,2]
[363093361,1748574640346,-156.116982,0.00021917,2]
[363093363,1748574640356,-150.034345,0.00021917,2]
[363093365,1748574640366,-420.0,0.00021917,2]
[363093367,1748574640377,-420.0,0.00021917,2]
[363093369,1748574640387,-544.32,0.00021917,2]
[363093371,1748574640397,-437.34,0.00021917,2]
[363093373,1748574640407,-420.0,0.00021917,2]
[363093375,1748574640418,-514.7,0.00021917,2]
[363093378,1748574640428,-420.0,0.00021917,2]
[363093380,1748574640439,-1284.89,0.00021917,2]
[363093382,1748574640449,-527.12,0.00021917,2]
[363093384,1748574640462,-993.1,0.00021917,2]
[363093386,1748574640473,-420.0,0.00021917,2]
[363093388,1748574640483,-1118.12,0.00021917,2]
[363093390,1748574640493,-420.0,0.00021917,2]
[363093392,1748574640503,-761.08,0.00021917,2]
[363093394,1748574640513,-420.0,0.00021917,2]
[363093396,1748574640523,-420.0,0.00021917,2]
[363093398,1748574640534,-420.0,0.00021917,2]
[363093400,1748574640544,-420.0,0.00021917,2]
[363093402,1748574640554,-420.0,0.00021917,2]
[363093404,1748574640564,-606.06,0.00021917,2]
[363093406,1748574640574,-420.0,0.00021917,2]
[363093408,1748574640586,-430.49,0.00021917,2]
[363093410,1748574640596,-1586.68,0.00021917,2]
[363093412,1748574640606,-673.27,0.00021917,2]
[363093414,1748574640616,-433.41418784,0.00021917,2]
[363093416,1748574640627,-420.0,0.00021917,2]
[363093418,1748574640637,-483.42,0.00021917,2]
[363093420,1748574640647,-524.95605246,0.00021917,2]
[363093422,1748574640658,-658.0,0.00021917,2]
[363093424,1748574640669,-1532.04,0.00021917,2]
[363093427,1748574640681,-420.0,0.00021917,2]
[363093428,1748574640691,-420.0,0.00021917,2]
[363093429,1748574640704,-420.0,0.00021917,2]
[363093450,1748574641002,-642.75,0.00021917,2]
[363093454,1748574641023,-420.0,0.00021917,2]
[363093455,1748574641033,-420.0,0.00021917,2]
[363093457,1748574641042,-420.0,0.00021917,2]
[363093459,1748574641051,-1439.15,0.00021917,2]
[363093461,1748574641061,-848.75,0.00021917,2]
[363093464,1748574641070,-420.0,0.00021917,2]
[363093466,1748574641080,-428.24,0.00021917,2]
[363093467,1748574641090,-1274.19,0.00021917,2]
[363093469,1748574641099,-420.0,0.00021917,2]
[363093472,1748574641109,-473.9,0.00021917,2]
[363093474,1748574641119,-420.0,0.00021917,2]
[363093476,1748574641129,-850.73,0.00021917,2]
[363093478,1748574641139,-420.0,0.00021917,2]
[363093480,1748574641149,-420.0,0.00021917,2]
[363093482,1748574641158,-2059.44,0.00021917,2]
[363093484,1748574641167,-540.82,0.00021917,2]
[363093486,1748574641177,-546.75,0.00021917,2]
[363093488,1748574641187,-494.23179395,0.00021917,2]
[363093490,1748574641196,-420.0,0.00021917,2]
[363093492,1748574641205,-420.0,0.00021917,2]
[363093494,1748574641215,-1184.01,0.00021917,2]
[363093496,1748574641224,-420.0,0.00021917,2]
[363093497,1748574641234,-686.42,0.00021917,2]
[363093499,1748574641243,-420.0,0.00021917,2]
[363093502,1748574641253,-420.0,0.00021917,2]
[363093504,1748574641263,-420.0,0.00021917,2]
[363093505,1748574641272,-246.18625895,0.00021917,2]
[363093508,1748574641281,-420.0,0.00021917,2]
[363093509,1748574641291,-499.81,0.00021917,2]
[363093512,1748574641300,-420.0,0.00021917,2]
[363093513,1748574641310,-420.0,0.00021917,2]
[363093515,1748574641319,-420.0,0.00021917,2]
[363093517,1748574641328,-682.7,0.00021917,2]
[363093519,1748574641339,-1060.15,0.00021917,2]
[363093521,1748574641348,-797.92,0.00021917,2]
[363093524,1748574641357,-420.0,0.00021917,2]
[363093526,1748574641367,-420.0,0.00021917,2]